bitfinex/quotes_SOLUSD_20240906
["timestamp","ask_amount","ask_price","bid_price","bid_amount"]
[1725590176940,20.0,131.19,131.15,26.6861]
[1725590178249,20.0,131.19,131.16,7.6238]
[1725590178560,7.6226,131.19,131.15,26.686]
[1725590180660,27.6221,131.2,131.15,19.0613]
[1725590180973,27.6221,131.2,131.16,7.6241]
[1725590181662,20.0,131.2,131.17,7.6236]
[1725590183066,22.3377,131.26,131.16,28.57830843]
[1725590183259,29.9562,131.26,131.21,7.6208]
[1725590183460,7.6191,131.25,131.2,7.6219]
[1725590185344,20.0,131.24,131.2,7.6219]
[1725590185568,20.0,131.24,131.21,7.6213]
[1725590185870,15.7192,131.26,131.21,7.6213]
[1725590186970,23.3377,131.26,131.21,7.6213]
[1725590187181,20.0,131.25,131.21,7.6213]
[1725590188271,15.7192,131.26,131.21,19.0521]
[1725590188447,7.6174,131.28,131.23,7.6196]
[1725590188651,20.0,131.27,131.23,7.6196]
[1725590188871,27.618,131.27,131.23,7.6196]
[1725590189076,27.618,131.27,131.22,7.6206]
[1725590190855,52.6186,131.26,131.21,26.6733]
[1725590191170,45.0,131.26,131.18,34.4261]
[1725590191374,20.0,131.25,131.18,34.4261]
[1725590191579,45.0,131.24,131.18,34.4261]
[1725590191760,7.6205,131.23,131.18,19.0571]
[1725590192078,52.6197,131.24,131.19,7.6224]
[1725590192250,7.6203,131.23,131.19,7.6224]
[1725590194176,7.6203,131.23,131.18,26.68]
[1725590194380,7.6209,131.22,131.18,19.0571]
[1725590194552,7.6209,131.22,131.17,7.6236]
[1725590194553,60.3993,131.24,131.21,7.6211]
[1725590194751,20.0,131.23,131.21,7.6211]
[1725590194980,15.3993,131.24,131.21,7.6211]
[1725590196254,23.019,131.24,131.2,26.6759]
[1725590196485,15.3993,131.24,131.2,26.6759]
[1725590198675,7.6185,131.26,131.21,7.6211]
[1725590198881,20.0,131.25,131.21,7.6211]
[1725590199472,27.6191,131.25,131.2,26.6759]
[1725590199878,27.6191,131.25,131.21,7.6212]
[1725590202570,7.6196,131.24,131.2,26.6759]
[1725590203085,27.6191,131.25,131.2,26.6759]
[1725590203666,27.6191,131.25,131.21,7.6211]
[1725590203972,20.0,131.25,131.22,7.6204]
[1725590204182,23.1778,131.27,131.23,7.6201]
[1725590205589,20.0,131.26,131.23,7.6201]
[1725590206477,20.0,131.27,131.23,7.6201]
[1725590208860,15.5596,131.3,131.24,19.0485]
[1725590209190,23.1761,131.3,131.25,7.6185]
[1725590209870,7.6167,131.29,131.25,7.6185]
[1725590210486,20.0,131.28,131.25,7.6185]
[1725590213893,27.6173,131.28,131.24,26.6679]
[1725590216880,27.6173,131.28,131.24,19.0485]
[1725590217192,27.6173,131.28,131.24,26.6679]
[1725590217384,20.0,131.28,131.24,26.6679]
[1725590217774,20.0,131.28,131.25,7.6188]
[1725590217975,20.0,131.29,131.25,7.6188]
[1725590218373,27.6168,131.29,131.25,7.6188]
[1725590219694,27.6168,131.29,131.24,26.668]
[1725590220599,7.6191,131.25,131.21,19.0529]
[1725590220778,20.0,131.29,131.21,19.0529]
[1725590220982,7.6179,131.27,131.22,7.6203]
[1725590221183,20.0,131.26,131.22,7.6203]
[1725590221886,7.6174,131.28,131.23,7.6198]
[1725590222191,20.0,131.27,131.23,7.6198]
[1725590222502,20.0,131.27,131.24,7.6196]
[1725590222870,27.6179,131.27,131.23,7.62]
[1725590223274,7.6179,131.27,131.23,7.62]
[1725590225781,18.23058927,131.33,131.25,7.6185]
[1725590225972,18.23058927,131.33,131.27,7.6176]
[1725590225973,22.8459,131.33,131.27,7.6176]
[1725590226777,22.8459,131.33,131.28,7.6169]
[1725590226993,16.0844828,131.36,131.27,15.3185]
[1725590227182,23.6971828,131.36,131.31,7.6153]
[1725590228594,16.0844828,131.36,131.31,19.0381]
[1725590229385,16.0844828,131.36,131.33,7.6143]
[1725590229578,20.0,131.35,131.33,7.6143]
[1725590230181,20.0,131.35,131.32,7.6149]
[1725590231504,0.8532828,131.36,131.3,11.37598915]
[1725590231707,0.8532828,131.36,131.33,19.0352]
[1725590232001,0.8532828,131.36,131.33,26.6491]
[1725590232209,0.8532828,131.36,131.34,7.6136]
[1725590232780,0.8532828,131.36,131.35,7.6132]
[1725590233284,0.8532828,131.36,131.35,25.62748915]
[1725590234079,0.8532828,131.36,131.35,14.2515]
[1725590234278,0.8532828,131.36,131.35,7.6132]
[1725590238185,0.8532828,131.36,131.34,7.6137]
[1725590239108,0.8532828,131.36,131.35,7.6132]
[1725590240897,0.8532828,131.36,131.34,7.6137]
[1725590241887,0.8532828,131.36,131.35,7.6132]
[1725590242716,15.2312,131.43,131.35,7.6132]
[1725590242717,22.2848828,131.49,131.35,110.823]
[1725590243006,25.26801461,131.49,131.35,155.823]
[1725590243515,25.26801461,131.49,131.42,7.609]
[1725590243684,7.6058,131.48,131.42,26.6308]
[1725590244089,32.87321461,131.49,131.44,7.6079]
[1725590244288,7.6058,131.48,131.43,7.6084]
[1725590244491,7.6063,131.47,131.42,26.6312]
[1725590244697,7.6068,131.46,131.42,26.6312]
[1725590245112,20.0,131.45,131.42,26.6312]
[1725590245409,20.0,131.45,131.42,19.0222]
[1725590245713,27.6074,131.45,131.41,7.6097]
[1725590245905,7.608,131.44,131.39,19.0267]
[1725590246110,27.6086,131.43,131.39,26.6375]
[1725590248706,15.0052,131.42,131.36,19.0314]
[1725590248910,20.0,131.41,131.36,19.0314]
[1725590249620,27.6098,131.41,131.36,26.6436]
[1725590249808,20.0,131.41,131.37,7.6115]
[1725590250210,27.6098,131.41,131.37,7.6115]
[1725590251121,27.6098,131.41,131.33,19.0353]
[1725590251122,7.6109,131.39,131.33,19.0353]
[1725590251620,20.0,131.38,131.35,7.6131]
[1725590252621,20.0,131.39,131.35,7.6131]
[1725590253799,27.6111,131.39,131.34,7.6136]
[1725590254825,27.6111,131.39,131.34,9.13520911]
[1725590255004,27.6111,131.39,131.34,7.6136]
[1725590255719,7.612,131.38,131.29,6.2939]
[1725590255930,52.612,131.38,131.29,6.2939]
[1725590256132,20.0,131.37,131.29,6.2939]
[1725590256918,20.0,131.37,131.32,19.0367]
[1725590257325,20.0,131.37,131.34,7.6135]
[1725590261320,15.0052,131.42,131.36,7.6126]
[1725590261507,22.6144,131.42,131.35,19.0326]
[1725590262608,7.6098,131.41,131.37,7.612]
[1725590262812,20.0,131.4,131.35,26.6456]
[1725590263110,7.6105,131.4,131.35,26.6456]
[1725590263410,20.0,131.39,131.35,26.6456]
[1725590263835,20.0,131.39,131.36,7.6126]
[1725590265119,20.0,131.4,131.37,7.612]
[1725590266823,15.0052,131.42,131.38,7.6112]
[1725590267338,20.0,131.41,131.38,7.6112]
[1725590267536,7.6075,131.45,131.4,7.6101]
[1725590267708,7.6082,131.44,131.4,7.6101]
[1725590268030,25.92707739,131.47,131.4,7.6101]
[1725590268031,7.6075,131.45,131.4,7.6101]
[1725590268535,7.6081,131.44,131.4,7.6101]
[1725590269412,7.6081,131.44,131.39,26.6376]
[1725590269826,20.0,131.43,131.39,26.6376]
[1725590270731,7.6101,131.41,131.37,7.6119]
[1725590270940,52.6092,131.42,131.37,7.6119]
[1725590271235,52.6092,131.42,131.38,7.6112]
[1725590271438,7.6086,131.43,131.39,7.6108]
[1725590271639,25.92707739,131.47,131.38,19.028]
[1725590271640,20.0,131.42,131.38,19.028]
[1725590272335,7.6081,131.44,131.4,7.6102]
[1725590272644,20.0,131.43,131.4,7.6102]
[1725590272814,27.6088,131.43,131.39,7.6107]
[1725590273337,20.0,131.43,131.39,7.6107]
[1725590273536,7.6081,131.44,131.39,7.6107]
[1725590273829,20.0,131.43,131.39,7.6107]
[1725590274436,27.6088,131.43,131.38,26.6393]
[1725590274749,20.0,131.42,131.38,26.6393]
[1725590276036,20.0,131.42,131.39,7.6105]
[1725590276223,20.0,131.43,131.39,7.6105]
[1725590279621,20.0,131.43,131.38,19.028]
[1725590279622,20.0,131.43,131.4,19.0254]
[1725590279830,20.0,131.44,131.4,19.0254]
[1725590280640,20.0,131.44,131.4,26.6355]
[1725590281247,27.608,131.44,131.4,26.6355]
[1725590282552,27.608,131.44,131.41,7.6097]
[1725590282553,20.0,131.44,131.41,7.6097]
[1725590283243,20.0,131.44,131.4,19.0254]
[1725590283244,20.0,131.44,131.42,7.6088]
[1725590283435,20.0,131.46,131.42,7.6088]
[1725590284052,27.607,131.46,131.41,7.6096]
[1725590287150,20.0,131.46,131.4,19.0254]
[1725590287347,7.609,131.43,131.38,7.6113]
[1725590287662,20.0,131.42,131.38,7.6113]
[1725590288343,45.0,131.45,131.39,7.6108]
[1725590288543,27.608,131.44,131.39,19.0268]
[1725590289341,27.608,131.44,131.4,7.6101]
[1725590290440,27.608,131.44,131.39,26.6375]
[1725590292272,27.6082,131.44,131.4,7.6102]
[1725590293874,27.6082,131.44,131.39,19.0268]
[1725590293875,20.0,131.44,131.41,7.6097]
[1725590294044,7.6072,131.46,131.41,7.6097]
[1725590294939,7.6072,131.46,131.41,19.0236]
[1725590295453,22.9588,131.47,131.41,26.6332]
[1725590295454,52.6076,131.45,131.41,26.6332]
[1725590295660,20.0,131.44,131.41,26.6332]
[1725590296462,20.0,131.44,131.41,19.0236]
[1725590296966,52.6076,131.45,131.41,19.0236]
[1725590298246,20.0,131.44,131.41,19.0236]
[1725590298568,20.0,131.44,131.41,26.6332]
[1725590298870,22.9588,131.47,131.41,26.6332]
[1725590298871,16.4325,131.47,131.43,7.6085]
[1725590299061,20.0,131.46,131.44,7.6079]
[1725590299251,20.0,131.47,131.44,7.6079]
[1725590299452,20.0,131.47,131.43,7.6084]
[1725590300463,7.6081,131.44,131.39,7.6104]
[1725590300670,7.6074,131.46,131.4,7.6102]
[1725590300844,20.0,131.45,131.4,7.6102]
[1725590301473,45.0,131.44,131.4,7.6102]
[1725590303975,45.0,131.44,131.41,7.6095]
[1725590304153,20.0,131.45,131.41,7.6095]
[1725590305367,27.6074,131.45,131.41,7.6095]
[1725590305961,7.6096,131.42,131.37,26.6415]
[1725590306251,65.0,131.41,131.37,26.6415]
[1725590306961,72.6098,131.41,131.37,26.6415]
[1725590307562,7.6121,131.37,131.32,7.6145]
[1725590308274,7.6114,131.39,131.33,7.6143]
[1725590308447,72.6116,131.38,131.33,7.6143]
[1725590309064,7.6122,131.37,131.32,7.6149]
[1725590309472,72.6116,131.38,131.33,7.6143]
[1725590311671,7.6121,131.37,131.32,7.6148]
[1725590311879,45.0,131.36,131.32,7.6148]
[1725590312809,45.0,131.36,131.27,25.03499957]
[1725590312955,20.0,131.38,131.27,34.979]
[1725590312956,15.5787,131.34,131.27,34.979]
[1725590313154,15.5787,131.34,131.24,28.14819957]
[1725590313155,65.0,131.33,131.24,28.14819957]
[1725590313369,7.6162,131.3,131.25,7.6185]
[1725590313672,20.0,131.29,131.25,7.6185]
[1725590314087,20.0,131.29,131.24,19.0484]
[1725590314088,27.6172,131.29,131.24,19.0484]
[1725590314391,45.0,131.28,131.21,19.0528]
[1725590314566,20.0,131.27,131.21,19.0528]
[1725590314881,45.0,131.26,131.21,19.0528]
[1725590315078,27.6179,131.27,131.22,7.6202]
[1725590316171,27.6179,131.27,131.21,19.0528]
[1725590316172,20.0,131.27,131.21,19.0528]
[1725590317266,20.0,131.27,131.24,7.6192]
[1725590319788,20.0,131.27,131.23,7.6201]
[1725590319983,27.6179,131.27,131.23,7.6201]
[1725590320179,45.0,131.26,131.23,7.6201]
[1725590320683,20.0,131.27,131.23,7.6201]
[1725590322287,45.0,131.26,131.23,7.6201]
[1725590323866,45.0,131.26,131.21,19.0528]
[1725590323867,45.0,131.26,131.22,7.6206]
[1725590325970,27.6179,131.27,131.23,20.57356647]
[1725590325971,20.0,131.27,131.23,20.57356647]
[1725590326293,20.0,131.27,131.23,26.6698]
[1725590326593,27.6181,131.27,131.23,26.6698]
[1725590326972,27.6181,131.27,131.23,19.0498]
[1725590327173,20.0,131.27,131.2,19.0546]
[1725590327469,7.6192,131.25,131.2,26.6765]
[1725590327686,20.0,131.24,131.2,26.6765]
[1725590328884,20.0,131.24,131.21,7.6212]
[1725590329081,20.0,131.24,131.21,9.14522955]
[1725590329287,20.0,131.25,131.22,7.6205]
[1725590330182,15.5787,131.28,131.22,7.6205]
[1725590330183,23.196,131.28,131.22,19.0514]
[1725590330390,23.196,131.28,131.23,7.62]
[1725590330688,15.5787,131.28,131.24,7.6195]
[1725590331968,20.0,131.27,131.24,7.6195]
[1725590332166,20.0,131.27,131.23,7.62]
[1725590332384,45.0,131.26,131.22,26.672]
[1725590340000,20.0,131.27,131.23,7.6201]
[1725590340201,20.0,131.27,131.25,7.619]
[1725590340501,20.0,131.27,131.24,26.668]
[1725590341384,20.0,131.27,131.21,19.0525]
[1725590341698,45.0,131.26,131.23,7.6201]
[1725590342080,45.0,131.26,131.24,7.6193]
[1725590342293,20.0,131.27,131.24,7.6193]
[1725590342504,20.0,131.27,131.23,26.6698]
[1725590342895,27.618,131.27,131.23,26.6698]
[1725590343407,52.6185,131.26,131.23,19.0498]
[1725590346405,45.0,131.26,131.23,19.0498]
[1725590351002,27.618,131.27,131.23,19.0498]
[1725590351204,20.0,131.27,131.26,7.6184]
[1725590351592,23.3474,131.31,131.26,7.6184]
[1725590353111,20.0,131.3,131.26,7.6184]
[1725590355007,15.7317,131.31,131.27,7.6178]
[1725590355407,18.71481921,131.34,131.25,11.38050391]
[1725590355602,15.7317,131.34,131.31,7.6154]
[1725590355813,7.6122,131.37,131.29,19.0413]
[1725590355990,7.6126,131.36,131.31,7.6155]
[1725590357112,20.0,131.35,131.31,7.6155]
[1725590357296,27.6133,131.35,131.3,7.616]
[1725590358404,20.0,131.35,131.31,7.6154]
[1725590358604,27.6132,131.35,131.3,7.616]
[1725590358895,45.0,131.34,131.3,7.616]
[1725590360699,20.0,131.35,131.31,7.6154]
[1725590362127,45.0,131.34,131.29,19.0413]
[1725590363025,52.6138,131.34,131.3,7.616]
[1725590363329,45.0,131.34,131.3,7.616]
[1725590364218,27.6145,131.33,131.29,19.0413]
[1725590364602,27.6145,131.33,131.29,26.658]
[1725590365121,20.0,131.33,131.29,26.658]
[1725590365318,20.0,131.33,131.29,26.62781]
[1725590366829,20.0,131.33,131.29,19.01111]
[1725590367004,45.0,131.32,131.26,24.6141672]
[1725590367210,45.0,131.32,131.26,19.0454]
[1725590368310,52.615,131.32,131.28,7.6171]
[1725590369719,7.6155,131.31,131.27,7.6178]
[1725590370127,7.6161,131.3,131.26,26.6637]
[1725590372238,7.6156,131.31,131.26,26.6637]
[1725590372531,20.0,131.3,131.27,7.6177]
[1725590372840,20.0,131.3,131.26,26.6637]
[1725590374929,20.0,131.3,131.27,7.6174]
[1725590375134,27.6156,131.31,131.27,7.6174]
[1725590375309,45.0,131.3,131.27,7.6174]
[1725590375510,45.0,131.3,131.26,26.6637]
[1725590376132,52.6161,131.3,131.26,26.6637]
[1725590377142,45.0,131.3,131.26,26.6637]
[1725590379040,45.0,131.3,131.27,7.6177]
[1725590390920,45.0,131.3,131.26,26.6637]
[1725590391121,45.0,131.3,131.27,7.6178]
[1725590400528,45.0,131.3,131.26,26.6636]
[1725590402549,45.0,131.3,131.27,7.6177]
[1725590403135,45.0,131.3,131.26,19.0454]
[1725590403529,52.6166,131.3,131.24,22.89331177]
[1725590403740,20.0,131.29,131.25,17.16511961]
[1725590403945,20.0,131.29,131.26,9.54641961]
[1725590404158,23.1007,131.33,131.29,7.6166]
[1725590404159,15.4858,131.33,131.29,7.6166]
[1725590404459,20.0,131.32,131.29,7.6166]
[1725590404856,15.4858,131.33,131.29,7.6166]
[1725590405157,14.2444,131.34,131.29,7.6166]
[1725590405158,15.3484,131.36,131.29,19.0412]
[1725590405342,15.3484,131.36,131.31,7.6151]
[1725590406246,22.9611,131.36,131.31,7.6151]
[1725590406656,65.0,131.35,131.31,7.6151]
[1725590406954,65.0,131.35,131.3,22.8837235]
[1725590407156,65.0,131.35,131.31,9.54224149]
[1725590407460,65.0,131.35,131.3,22.8837235]
[1725590407634,65.0,131.35,131.31,9.54224149]
[1725590407963,65.0,131.35,131.3,22.8837235]
[1725590407964,65.0,131.35,131.3,7.6161]
[1725590408139,65.0,131.35,131.31,9.54229846]
[1725590408334,65.0,131.35,131.3,22.88377445]
[1725590408865,65.0,131.35,131.31,9.54229846]
[1725590409034,57.0743,131.41,131.31,9.54229846]
[1725590409035,15.3484,131.39,131.31,19.0382]
[1725590409235,15.3484,131.39,131.33,7.6142]
[1725590409952,22.9594,131.39,131.33,7.6142]
[1725590410452,7.6118,131.38,131.31,41.91904885]
[1725590410645,7.6118,131.38,131.32,9.54051004]
[1725590410646,65.0,131.37,131.32,9.54051004]
[1725590410848,65.0,131.37,131.31,26.6537]
[1725590411161,65.0,131.37,131.32,9.54051004]
[1725590412137,20.0,131.37,131.32,9.54051004]
[1725590412338,20.0,131.37,131.31,26.6537]
[1725590412339,20.0,131.37,131.31,36.19421004]
[1725590413963,27.6122,131.37,131.31,28.57871004]
[1725590414263,27.6122,131.37,131.31,19.0382]
[1725590415745,27.6122,131.37,131.31,26.6537]
[1725590416263,27.6122,131.37,131.32,7.6148]
[1725590416264,20.0,131.37,131.32,7.6148]
[1725590417761,20.0,131.37,131.31,26.6536]
[1725590419259,20.0,131.37,131.32,1.52270672]
[1725590419475,7.6122,131.37,131.32,1.52270672]
[1725590419638,20.0,131.36,131.32,1.52270672]
[1725590420342,20.0,131.37,131.32,1.52270672]
[1725590421638,15.3484,131.39,131.32,1.52270672]
[1725590421639,15.3484,131.39,131.32,19.0369]
[1725590421843,15.3484,131.39,131.33,7.6142]
[1725590422072,7.6107,131.4,131.34,7.6136]
[1725590422248,16.4641,131.42,131.37,7.612]
[1725590422446,16.4641,131.42,131.37,7.6119]
[1725590423448,20.0,131.41,131.37,7.6119]
[1725590424353,20.0,131.41,131.38,7.6114]
[1725590424670,20.0,131.44,131.38,7.6114]
[1725590424843,20.0,131.44,131.37,7.6119]
[1725590425250,27.6082,131.44,131.37,7.6119]
[1725590427260,20.0,131.44,131.38,7.6114]
[1725590427572,20.0,131.44,131.38,7.6113]
[1725590427863,27.6082,131.44,131.36,26.643]
[1725590428067,27.6082,131.44,131.37,7.6115]
[1725590430483,20.0,131.44,131.38,7.6114]
[1725590431145,20.0,131.44,131.36,19.0309]
[1725590431146,27.6081,131.44,131.37,7.612]
[1725590433378,7.6087,131.43,131.37,7.612]
[1725590433553,20.0,131.42,131.37,7.612]
[1725590434375,20.0,131.42,131.36,19.0309]
[1725590434376,27.6094,131.42,131.36,26.6434]
[1725590434579,7.6098,131.41,131.34,38.37522369]
[1725590435143,7.6098,131.41,131.35,7.6131]
[1725590435550,15.3916,131.4,131.34,7.6137]
[1725590436177,15.3916,131.4,131.35,7.6131]
[1725590436752,23.0024,131.4,131.33,26.6492]
[1725590437081,23.0024,131.4,131.34,7.6136]
[1725590437564,15.3916,131.4,131.34,7.6136]
[1725590441052,15.3916,131.4,131.35,7.6131]
[1725590443060,15.3916,131.4,131.33,19.0353]
[1725590443270,15.3916,131.4,131.31,7.6154]
[1725590443271,7.612,131.38,131.31,7.6154]
[1725590443479,7.612,131.38,131.32,7.6148]
[1725590444377,72.6109,131.39,131.33,7.6139]
[1725590447601,72.6109,131.39,131.32,19.0363]
[1725590447602,20.0,131.39,131.35,7.6132]
[1725590447897,20.0,131.39,131.31,9.5404267]
[1725590448057,7.6116,131.38,131.31,7.6151]
[1725590448258,20.0,131.37,131.32,7.6149]
[1725590449261,20.0,131.37,131.3,9.5404267]
[1725590449481,21.5252,131.36,131.29,9.5404267]
[1725590449780,20.0,131.35,131.3,9.5404267]
[1725590449979,20.0,131.35,131.28,9.5404267]
[1725590450281,20.0,131.35,131.29,17.1566267]
[1725590450576,20.0,131.35,131.29,7.6162]
[1725590451168,20.0,131.35,131.29,17.15729737]
[1725590451368,27.6135,131.35,131.28,17.15829737]
[1725590451570,27.6135,131.35,131.29,9.54109737]
[1725590452284,27.6135,131.35,131.3,9.54109737]
[1725590453584,27.6135,131.35,131.29,7.6166]
[1725590453964,27.6135,131.35,131.3,9.54197594]
[1725590454787,45.0,131.34,131.3,9.54197594]
[1725590454987,45.0,131.34,131.29,9.54302755]
[1725590455163,45.0,131.34,131.28,9.54302755]
[1725590455468,20.0,131.33,131.28,9.54302755]
[1725590455888,15.2161,131.31,131.28,9.54302755]
[1725590456184,15.2161,131.31,131.27,19.0446]
[1725590456568,22.8317,131.31,131.26,9.54302755]
[1725590456779,22.8317,131.31,131.25,7.619]
[1725590456973,22.8317,131.31,131.25,17.16306644]
[1725590457184,22.8317,131.31,131.26,9.54406834]
[1725590457394,22.8317,131.31,131.25,17.16306834]
[1725590458173,15.2161,131.31,131.25,17.16306834]
[1725590458388,15.2161,131.31,131.26,12.90384101]
[1725590458580,15.2161,131.31,131.27,1.5232354]
[1725590458781,15.2161,131.31,131.27,9.1409354]
[1725590460179,15.2161,131.31,131.27,7.6177]
[1725590463490,6.4478,131.32,131.27,7.6177]
[1725590463491,20.0,131.33,131.28,11.38050391]
[1725590464369,20.0,131.33,131.3,7.616]
[1725590464577,15.2161,131.34,131.3,7.616]
[1725590466577,15.2161,131.34,131.31,7.6154]
[1725590474501,15.2161,131.34,131.27,17.15956086]
[1725590474502,7.6149,131.33,131.27,17.15956086]
[1725590474685,27.6149,131.33,131.27,7.6174]
[1725590475009,27.6149,131.33,131.26,9.54216086]
[1725590475010,20.0,131.33,131.26,9.54216086]
[1725590475308,15.2161,131.29,131.24,9.54216086]
[1725590475604,15.2161,131.29,131.25,7.6186]
[1725590479082,15.2161,131.29,131.26,7.6183]
[1725590480402,15.2161,131.32,131.26,11.38050391]
[1725590480585,15.2161,131.32,131.28,7.6172]
[1725590481399,15.2161,131.32,131.29,0.71809208]
[1725590482702,15.2161,131.32,131.29,8.55097789]
[1725590483590,15.2161,131.32,131.28,17.16174977]
[1725590485706,15.2161,131.32,131.28,20.92525368]
[1725590485880,15.2161,131.32,131.29,9.54474977]
[1725590486486,15.2161,131.32,131.29,17.16134977]
[1725590486886,15.2161,131.32,131.28,7.6171]
[1725590487193,15.2161,131.32,131.28,17.16008558]
[1725590487495,15.2161,131.32,131.28,7.6171]
[1725590487681,15.2161,131.32,131.28,9.54337185]
[1725590488605,15.2161,131.32,131.28,9.54342563]
[1725590489408,15.2161,131.32,131.27,26.6618]
[1725590489613,15.2161,131.32,131.28,9.54348064]
[1725590489801,15.2161,131.32,131.27,26.6618]
[1725590489995,15.2161,131.32,131.28,9.54340364]
[1725590490188,15.2161,131.32,131.28,7.6172]
[1725590491507,15.2161,131.32,131.29,7.6165]
[1725590491687,15.2161,131.32,131.28,17.16060558]
[1725590491882,15.2161,131.32,131.29,9.54340558]
[1725590492197,15.2161,131.32,131.27,34.31344892]
[1725590492198,22.8315,131.32,131.27,34.31344892]
[1725590492398,22.8315,131.32,131.28,9.5433247]
[1725590492702,15.2161,131.32,131.28,7.6171]
[1725590493114,15.2161,131.32,131.29,9.54344834]
[1725590493403,15.2161,131.32,131.29,7.6167]
[1725590495387,15.2161,131.32,131.28,7.6171]
[1725590495603,15.2161,131.32,131.28,22.88600825]
[1725590496110,15.2161,131.32,131.29,15.12061922]
[1725590496497,15.2161,131.32,131.3,5.57728794]
[1725590503604,7.6155,131.31,131.3,5.57728794]
[1725590503922,72.6155,131.31,131.3,5.57728794]
[1725590506003,6.3011,131.37,131.3,5.57728794]
[1725590506199,15.3815,131.36,131.33,19.0358]
[1725590506398,21.6826,131.4,131.35,7.6132]
[1725590507018,29.293,131.4,131.34,17.15350239]
[1725590507201,29.293,131.4,131.35,5.57335242]
[1725590507520,29.293,131.4,131.34,7.6137]
[1725590507712,29.293,131.4,131.35,5.57326901]
[1725590508030,29.293,131.4,131.34,7.6137]
[1725590508201,29.293,131.4,131.35,5.57316002]
[1725590508400,29.293,131.4,131.34,7.6137]
[1725590508624,29.293,131.4,131.35,5.57333457]
[1725590508925,29.293,131.4,131.34,7.6137]
[1725590509104,29.293,131.4,131.35,5.57333457]
[1725590509299,29.293,131.4,131.34,7.6137]
[1725590509509,29.293,131.4,131.35,5.57393477]
[1725590509709,29.293,131.4,131.34,17.15316552]
[1725590510236,7.6122,131.37,131.34,9.53946552]
[1725590510401,7.6122,131.37,131.32,15.11564687]
[1725590510608,7.6122,131.37,131.33,5.57618135]
[1725590510909,7.6122,131.37,131.32,9.53946552]
[1725590511225,7.6122,131.37,131.31,7.6155]
[1725590511526,7.6122,131.37,131.32,5.57666297]
[1725590511724,7.6122,131.37,131.31,7.6155]
[1725590511920,45.0,131.39,131.32,5.57666419]
[1725590512103,20.0,131.38,131.31,5.57810116]
[1725590512422,15.3815,131.36,131.3,26.6563]
[1725590512621,45.0,131.35,131.31,5.57840804]
[1725590513012,52.6132,131.35,131.3,26.6563]
[1725590513217,52.6132,131.35,131.31,5.57849188]
[1725590513418,52.6132,131.35,131.3,26.6563]
[1725590513615,52.6132,131.35,131.31,5.57839972]
[1725590513805,52.6132,131.35,131.3,36.1982911]
[1725590514004,52.6132,131.35,131.31,5.57850478]
[1725590514306,52.6132,131.35,131.3,19.0403]
[1725590514505,52.6132,131.35,131.31,5.57859405]
[1725590514718,52.6132,131.35,131.3,28.5822911]
[1725590514937,7.6139,131.34,131.31,5.5785994]
[1725590515235,7.6139,131.34,131.3,28.5822911]
[1725590515522,7.6139,131.34,131.31,5.57866393]
[1725590515726,7.6139,131.34,131.3,28.5822911]
[1725590515907,7.6139,131.34,131.31,5.57860475]
[1725590516229,7.6144,131.33,131.28,7.6172]
[1725590516419,7.6144,131.33,131.29,9.54296086]
[1725590516608,7.6144,131.33,131.29,15.12309764]